{"text_format":"1","workbook":"xlsx","n_sheets":2,"sheets":["Tillad makroer","Blanket - over 24 timer"],"not_rendered":{"charts":0,"images":0,"macros":1,"external_links":0,"defined_names":0,"comments":0,"pivot_tables":0},"unopened":[],"bounds":{"document_bytes":16777216,"sheet_cells":100000,"rows_first":2000,"rows_last":500,"rows_between":2000,"halvings":0,"cell_chars":16384,"cell_head_chars":4096},"cells_cut":0,"cells_raw":0,"read":"whole","date_system":"1900"}

{"sheet":"Tillad makroer","index":0,"n_rows":1,"n_cols":1,"rows_kept":1,"cut":false,"hidden":false,"merged":[[0,0,0,25]]}
["For at tilgå Rejseafregningsblanketten skal du huske at trykke \"Aktivér indhold\" i den gule fane øverst.\nUdfyld da arket som normalt. Tak!"]

{"sheet":"Blanket - over 24 timer","index":1,"n_rows":42,"n_cols":11,"rows_kept":42,"cut":false,"hidden":true,"merged":[[29,1,29,9],[30,1,30,9],[11,2,11,4],[13,1,13,9],[15,2,15,3],[16,2,16,3],[17,2,17,3],[14,7,14,8],[15,7,15,8],[16,7,16,8],[17,7,17,8],[11,7,11,8],[27,7,27,8],[26,7,26,8],[18,2,18,3],[18,7,18,8],[25,2,25,9],[1,1,1,9],[3,1,3,9],[4,2,4,9],[5,2,5,9],[7,1,7,9],[8,2,8,9],[41,2,41,9],[31,7,31,8],[32,7,32,8],[33,7,33,8],[34,7,34,8],[36,1,36,6],[38,1,38,8],[36,7,36,8],[19,7,19,8],[26,2,26,3],[26,4,26,5],[21,1,21,9],[22,1,22,9],[23,2,23,9],[24,2,24,9]]}
[]
[null,"Rejse- og udlægsafregning over 24 timer",null,null,null,null,null,null,null,null,"OBS: Alle lyseblå felter bedes udfyldes, før arket kan gemmes."]
[]
[null,"Personoplysninger"]
[null,"Navn:",null,null,null,null,null,null,null,null,{"$f":"IF(TRIM(C5)=\"\", \"⚠️ Udfyld venligst navn i det lyseblå felt til venstre\", \"\")","v":"⚠️ Udfyld venligst navn i det lyseblå felt til venstre"}]
[null,"CPR-nummer:",null,null,null,null,null,null,null,null,{"$f":"IF(TRIM(C6)=\"\", \"⚠️ Udfyld venligst CPR. nr. som 10 tal i rækkefølge i det lyseblå felt til venstre\", \"\")","v":"⚠️ Udfyld venligst CPR. nr. som 10 tal i rækkefølge i det lyseblå felt til venstre"}]
[]
[null,"Rejseoplysninger"]
[null,"Rejsens formål/mødets navn:",null,null,null,null,null,null,null,null,{"$f":"IF(TRIM(C9)=\"\", \"⚠️ Udfyld venligst det lyseblå felt til venstre\", \"\")","v":"⚠️ Udfyld venligst det lyseblå felt til venstre"}]
[null,"Afrejse:         (angives med tal i hver rubrik)","Dag:",null,"Måned:",null,"År:",null,"Tidspunkt:",null,{"$f":"IF(OR(TRIM(D10)=\"\", TRIM(F10)=\"\", TRIM(H10)=\"\", TRIM(J10)=\"\"), \"⚠️ Udfyld venligst de fire lyseblå datofelter til venstre\", \"\")","v":"⚠️ Udfyld venligst de fire lyseblå datofelter til venstre"}]
[null,"Hjemrejse:     (angives med tal i hver rubrik)","Dag:",null,"Måned:",null,"År:",null,"Tidspunkt:",null,{"$f":"IF(OR(TRIM(D11)=\"\", TRIM(F11)=\"\", TRIM(H11)=\"\", TRIM(J11)=\"\"), \"⚠️ Udfyld venligst de fire lyseblå datofelter til venstre\", \"\")","v":"⚠️ Udfyld venligst de fire lyseblå datofelter til venstre"}]
[null,"Rejsens varighed i alt:","Døgn:",null,null,null,{"$f":"INT(J13 - I13)","v":0},"Timer:",null,{"$f":"HOUR((J13 - I13) - INT(J13 - I13)) + ROUND(MINUTE((J13 - I13) - INT(J13 - I13)) / 60, 0)","v":0}]
[null,null,null,null,null,null,null,null,{"$f":"IF(COUNTA(D10,F10,H10,J10)<4, 0, DATE(H10,F10,D10) + TIME(HOUR(J10),MINUTE(J10),0))","v":"00:00:00"},{"$f":"IF(COUNTA(D11,F11,H11,J11)<4, 0, DATE(H11,F11,D11) + TIME(HOUR(J11),MINUTE(J11),0))","v":"00:00:00"}]
[null,"Time/dagpenge og gratis måltider"]
[null,"Time/dagpenge (udregnet via afrejse/hjemrejse dato og tid):",null,null,597,null,null,"I alt kr.",null,{"$f":"SUM(G12*597)+(SUM(J12*24.88))","v":0}]
[null,"Antal nattillæg (udokumenteret logi sats kr. 255,00):",null,null,null,null,null,"I alt kr.",null,{"$f":"C16*255","v":0},{"$f":"IF(TRIM(C16)=\"\", \"⚠️ Udfyld venligst antal i det lyseblå felt til venstre. Har du ikke haft denne type udlæg, skriv da 0 i feltet.\", \"\")","v":"⚠️ Udfyld venligst antal i det lyseblå felt til venstre. Har du ikke haft denne type udlæg, skriv da 0 i feltet."}]
[null,"Antal gratis morgenmad (sats kr. 89,55):",null,null,null,null,null,"I alt kr.",null,{"$f":"C17*89.55","v":0},{"$f":"IF(TRIM(C17)=\"\", \"⚠️ Udfyld venligst antal i det lyseblå felt til venstre. Har du ikke haft denne type udlæg, skriv da 0 i feltet.\", \"\")","v":"⚠️ Udfyld venligst antal i det lyseblå felt til venstre. Har du ikke haft denne type udlæg, skriv da 0 i feltet."}]
[null,"Antal gratis frokost (sats kr. 179,10):",null,null,null,null,null,"I alt kr.",null,{"$f":"C18*179.1","v":0},{"$f":"IF(TRIM(C18)=\"\", \"⚠️ Udfyld venligst antal i det lyseblå felt til venstre. Har du ikke haft denne type udlæg, skriv da 0 i feltet.\", \"\")","v":"⚠️ Udfyld venligst antal i det lyseblå felt til venstre. Har du ikke haft denne type udlæg, skriv da 0 i feltet."}]
[null,"Antal gratis aftensmad (sats kr. 179,10):",null,null,null,null,null,"I alt kr.",null,{"$f":"C19*179.1","v":0},{"$f":"IF(TRIM(C19)=\"\", \"⚠️ Udfyld venligst antal i det lyseblå felt til venstre. Har du ikke haft denne type udlæg, skriv da 0 i feltet.\", \"\")","v":"⚠️ Udfyld venligst antal i det lyseblå felt til venstre. Har du ikke haft denne type udlæg, skriv da 0 i feltet."}]
[null,"Time/dagpenge i alt:",null,null,null,null,null,"I alt kr.",null,{"$f":"SUM(J15:J19)","v":0}]
[]
[null,"Kørsel i egen bil"]
[null,"OBS! Dokumentation med samlet kilometerangivelse skal vedlægges som bilag."]
[null,"Fra - (vejnavn, postnr. og by):",null,null,null,null,null,null,null,null,{"$f":"IF(TRIM(C24)=\"\", \"⚠️ Udfyld venligst adressenavn i det lyseblå felt til venstre. Har du ikke haft kørsel i egen bil, skriv da 0 i feltet.\", \"\")","v":"⚠️ Udfyld venligst adressenavn i det lyseblå felt til venstre. Har du ikke haft kørsel i egen bil, skriv da 0 i feltet."}]
[null,"Til  - (vejnavn, postnr. og by):",null,null,null,null,null,null,null,null,{"$f":"IF(TRIM(C25)=\"\", \"⚠️ Udfyld venligst adressenavn i det lyseblå felt til venstre. Har du ikke haft kørsel i egen bil, skriv da 0 i feltet.\", \"\")","v":"⚠️ Udfyld venligst adressenavn i det lyseblå felt til venstre. Har du ikke haft kørsel i egen bil, skriv da 0 i feltet."}]
[null,"Registreringsnummer:",null,null,null,null,null,null,null,null,{"$f":"IF(TRIM(C26)=\"\", \"⚠️ Udfyld venligst registreringsnummer i det lyseblå felt til venstre. Har du ikke haft kørsel i egen bil, skriv da 0 i feltet.\", \"\")","v":"⚠️ Udfyld venligst registreringsnummer i det lyseblå felt til venstre. Har du ikke haft kørsel i egen bil, skriv da 0 i feltet."}]
[null,"Antal kørte kilometer t/r (sats kr. 2,23):",null,null,null,null,null,"I alt kr.",null,{"$f":"C27*2.23","v":0},{"$f":"IF(TRIM(C27)=\"\", \"⚠️ Udfyld venligst antal i det lyseblå felt til venstre. Har du ikke haft denne type udlæg, skriv da 0 i feltet.\", \"\")","v":"⚠️ Udfyld venligst antal i det lyseblå felt til venstre. Har du ikke haft denne type udlæg, skriv da 0 i feltet."}]
[null,"Kørselsgodtgørelse i alt:",null,null,null,null,null,"I alt kr.",null,{"$f":"SUM(J27)","v":0}]
[]
[null,"Øvrige udgifter"]
[null,"OBS! Alle billetter og kvitteringer skal vedlægges som bilag. Kort/bankkvitteringer er ikke nok."]
[null,"Broafgift, parkering, taxa, transport m.m.:",null,null,null,null,null,"I alt kr.",null,null,{"$f":"IF(TRIM(J32)=\"\", \"⚠️ Udfyld venligst beløb i det lyseblå felt til venstre. Har du ikke haft denne type udlæg, skriv da 0 i feltet.\", \"\")","v":"⚠️ Udfyld venligst beløb i det lyseblå felt til venstre. Har du ikke haft denne type udlæg, skriv da 0 i feltet."}]
[null,"Hotel ved overnatning:",null,null,null,null,null,"I alt kr.",null,null,{"$f":"IF(TRIM(J33)=\"\", \"⚠️ Udfyld venligst beløb i det lyseblå felt til venstre. Har du ikke haft denne type udlæg, skriv da 0 i feltet.\", \"\")","v":"⚠️ Udfyld venligst beløb i det lyseblå felt til venstre. Har du ikke haft denne type udlæg, skriv da 0 i feltet."}]
[null,"Morgenmad på hotel (pris skal oplyses)",null,null,null,null,null,"I alt kr.",null,null,{"$f":"IF(TRIM(J34)=\"\", \"⚠️ Udfyld venligst beløb i det lyseblå felt til venstre. Har du ikke haft denne type udlæg, skriv da 0 i feltet.\", \"\")","v":"⚠️ Udfyld venligst beløb i det lyseblå felt til venstre. Har du ikke haft denne type udlæg, skriv da 0 i feltet."}]
[null,"Øvrige udgifter i alt:",null,null,null,null,null,"I alt kr.",null,{"$f":"SUM(J32:J34)","v":0}]
[]
[null,"Beløb til udbetaling - bliver udbetalt til NEMkonto",null,null,null,null,null,"I alt kr.",null,{"$f":"SUM(J20+J28+J35)","v":0}]
[]
[null,"Har du husket at vedlægge alle nødvendige bilag?",null,null,null,null,null,null,null,null,{"$f":"IF(TRIM(J39)=\"\", \"⚠️ Indikér at du har husket at tilføje alle bilag ved at skrive 'JA' I feltet.\", \"\")","v":"⚠️ Indikér at du har husket at tilføje alle bilag ved at skrive 'JA' I feltet."}]
[]
[]
[null,"Status på udfyldning af ark:",{"$f":"IF(AND(\nC5<>\"\", C6<>\"\", C9<>\"\",D10<>\"\", F10<>\"\", H10<>\"\", J10<>\"\",\nD11<>\"\", F11<>\"\", H11<>\"\", J11<>\"\",\nC16<>\"\", C17<>\"\", C18<>\"\", C19<>\"\", C24<>\"\", C25<>\"\", C26<>\"\", C27<>\"\",\nJ32<>\"\", J33<>\"\", J34<>\"\", J39<>\"\"\n),\n\"✅ Alle nødvendige felter er blevet udfyldt. Arket kan nu blive gemt. Husk at vedlægge dokumentation for udgifter i form af bilag\",\n\"❌ Der er felter, som mangler at blive udfyldt, før at arket kan gemmes.\")","v":"❌ Der er felter, som mangler at blive udfyldt, før at arket kan gemmes."}]